Workbook

Sheet Données de base
B1: Données de base | J1: Remarques concernant le traitement par le bénéficiaire du financement : Veuillez d’abord renseigner les données de base suivantes avant de remplir l’onglet « Budget Financements ». Ne remplissez que les cellules sur fond bleu. Toutes les autres cellules sont calculées automatiquement.
B3: Nom du bénéficiaire : | H3: =IF(C3="Bitte eintragen","- Bitte den Namen Ihres Vereins im Feld <Name des Zuschussempfängers> eintragen; "," ") -> 
B5: S’agit-il du premier budget ou d’une modification du contrat ? | C5: Sélectionner | F5: =IF(C5="Adaptation du contrat","Numéro d’ordre :","") ->  | G5: À sélectionner uniquement en cas d’avenant au contrat | H5: =IF(C5="Vertragsanpassung",1,0) -> 0
B6: Titre du projet et numéro de contrat | H6: =IF(C6="Veranstaltung",1,IF(C6="Projekt",1,0)) -> 0
B7: Demandez-vous la prise en charge de vos frais généraux d'administration ? | C7: Sélectionner | D7: Veuillez indiquer le montant des frais généraux administratifs en pourcentage. | H7: =IF(C7="Ja, anderer Betrag",1,0) -> 0
B8: Apporterez-vous une contribution (financière) propre à cette mesure ? | C8: Sélectionner | D8: Montant en EUR | H8: =IF(C8="Ja, anderer Betrag",1,0) -> 0
B9: Par combien de contributeurs le projet doit-il être cofinancé (en plus de la GIZ) ? | C9: Sélectionner | D9: Nom du bailleur de fonds externe | F9: Montant des fonds de tiers en EUR
D10: Nom du bailleur de fonds externe | F10: Montant des fonds de tiers en EUR | H10: =IF(C10="Ja",1,0) -> 0
D11: Nom du bailleur de fonds externe | F11: Montant des fonds de tiers en EUR | H11: =IF(C11="Ja",1,0) -> 0
D12: Nom du bailleur de fonds externe | F12: Montant des fonds de tiers en EUR
D13: Nom du bailleur de fonds externe | F13: Montant des fonds de tiers en EUR
D14: Nom du bailleur de fonds externe | F14: Montant des fonds de tiers en EUR
D15: Nom du bailleur de fonds externe | F15: Montant des fonds de tiers en EUR
B16: Des fonds doivent-ils être transférés à des bénéficiaires tiers ? (Veuillez noter qu'il ne s'agit pas ici de paiements pour des prestations achetées) | C16: Sélectionner | D16: Il s'agit de vos partenaires qui mettent en œuvre de manière autonome une partie de votre projet avec vous et qui reçoivent en contrepartie le remboursement des frais encourus, dans la mesure où ils sont requis pour la mise en œuvre. Un budget séparé doit être soumis et un examen d'aptitude commerciale et juridique (uniquement les critères : personnalité juridique et utilité publique) doit être effectué par le projet GIZ.
B17: Des achats de médicaments et de pesticides et d'engrais minéraux seront-ils effectués ? | C17: Sélectionner | D17: Un processus d’autorisation distinct, interne à la GIZ, est nécessaire.
B18: La part des achats de biens matériels est-elle supérieure à 1 000 000 euros ou, dans le cas où le financement représente une valeur contractuelle d’au moins 400 000 euros, est-elle supérieure à 50 % ? | C18: Sélectionner | D18: Un processus d’autorisation distinct, interne à la GIZ, est nécessaire.
B19: Des mesures de construction seront-elles financées ? | C19: Sélectionner | D19: Un processus d’autorisation distinct, interne à la GIZ, pourra être nécessaire.
B20: Des bulles d’aide doivent-elles s’afficher dans le budget ? « Oui » recommandé pour le traitement « Non » recommandé pour une meilleure lisibilité | C20: Oui
B22: Date d'élaboration du budget :

Sheet Budget Financements
A1: =IF('Données de base'!C3="","Veuillez renseigner toutes les données de base.",CONCATENATE("Budget /Plan de financement - Annexe 1",CHAR(10),'Données de base'!C3," - ",'Données de base'!C6,"",'Données de base'!E6,"",IF(L4="VE",CONCATENATE(" - ",'Données de base'!G5," Avenant",""),""))) -> Veuillez renseigner toutes les données de base. | J1: ='Données de base'!C22 -> 00:00:00 | N1: Pas de modification | O1: Remarques concernant le traitement : Veuillez d’abord renseigner les données de base avant de remplir l’onglet « Budget ». Dans l’onglet « Budget », ne remplissez que les cellules sur fond bleu. Toutes les autres cellules sont calculées automatiquement.
J2: 2023-08 | N2: modification
B3: Description | C3: Code | D3: Quantité / Nombre | E3: Unité (p. ex. personne, véhicule, salle, etc.) | F3: Quantité / Nombre | G3: Unité (p. ex. mois, jour, forma-tion, etc. | H3: Montant unitaire éligible en EUR (max.) (prix par unité) | I3: Total Contribution financière de la GIZ en EUR (max.) | J3: Contribution propre / Financement de tiers en EUR (max.) | L3: =IF($L$4="VE",CONCATENATE("En cas d'avenants:",CHAR(10),"cette ligne budgétaire a-t-elle été modifiée ?"),"") ->  | O3: Remarques générales : Ce format de budget sert de base de décompte. Pour votre usage interne, n’hésitez pas à créer d’autres fichiers contenant des informations plus détaillées. Tous les postes inscrits au budget doivent également figurer dans la description du projet afin que le lien avec le projet soit visible. Le tableau est pourvu de formules qui doivent être conservées. Veuillez vous tenir au format à deux décimales. Il est recommandé d’arrondir les unités dans la mesure du possible. Les coûts sont convenus avec une valeur « max. ».
B4: =IF('Données de base'!C20="Oui",CONCATENATE("Remarques: Les cellules sur fond bleu sont remplies par ",IF('Données de base'!C3="","le bénéficiaire",'Données de base'!C3),),"") -> Remarques: Les cellules sur fond bleu sont remplies par le bénéficiaire | I4: =IF('Données de base'!C20="Oui","Remarques: Les cellules sont calculées automatiquement.","") -> Remarques: Les cellules sont calculées automatiquement. | L4: =IF('Données de base'!C5="Adaptation du contrat","VE","NOVE") -> NOVE
A5: 1 | B5: Personnel propre (désignation de la fonction) (Note 1 : uniquement le personnel de votre organisation ; la preuve des coûts de cette ligne budgétaire doit être fournie sous forme de fiches de salaire ou, en cas de financement proportionnel, sous forme de fiches de salaire accompagnées des relevés d'heures correspondants ; Remarque 2 : seuls les frais de personnel le (coût de revient - bruts de l'employeur) peuvent être imputés. Les suppléments tels que les charges générales du personnel, calculés au prorata du personnel, ne sont pas éligibles). | D5: =IF('Données de base'!C20="Oui",CONCATENATE("Aide pour remplir: ",Exemple!P5),"") -> Aide pour remplir: La colonne « Montant unitaire éligible (max.) » doit toujours indiquer le salaire brut mensuel du employeur. Pour les emplois à temps partiel, indiquer le pourcentage à la colonne D. Veuillez indiquer quelles sont les coûts de personnel accessoires qui s’appliquent en vertu de la législation dans votre pays. En principe, les cotisations sociales et les paiements convenus dans le contrat de travail ou la convention collective peuvent être financés (les gratifications ou les primes d’intéressement au bénéfice sont en revanche exclues). Les coûts accessoires d’une autre nature doivent être discutés et vérifiés avant l’établissement du contrat et faire l’objet d’un commentaire dans la ligne budgétaire. Les contrats portant sur des petits boulots (« mini-jobs ») ou des jobs d’étudiant sont à affecter au poste Coûts de personnel, même s’il n’y a pas de cotisations sociales à payer. Si plusieurs personnes doivent être financées au prorata (p. ex. 3 personnes à raison de 75 %), veuillez augmenter le nombre de mois en conséquence et inscrire le nombre de personnes dans la description de la ligne budgétaire. | I5: =SUM(I6:I42) -> 0 | J5: Une prise en charge partielle des lignes budgétaires n'est pas possible pour la GIZ, à l’exception des lignes budgétaires principales « coûts de personnel », qui peuvent être exprimés en pourcentage, ainsi que des « coûts locaux du projet au prorata ». Les autres coûts qui surviennent dans le cadre de la mise en œuvre du projet et qui ne doivent pas être pris en charge par la GIZ sont calculés séparément. Soit en tant que contribution propre, soit, si cela est pertinent, en tant que contribution contribution d'un tiers. | L5: =IF(L4="VE","À NOTER . La GIZ ne peut pas prendre en charge les coûts dus à l'inflation.","") -> 
E6: personne | G6: mois | I6: =ROUND(D6*F6*H6,2) -> 0 | L6: Pas de modification
E7: personne | G7: mois | I7: =ROUND(D7*F7*H7,2) -> 0 | L7: Pas de modification
E8: personne | G8: mois | I8: 0 | L8: Pas de modification
E9: personne | G9: mois | I9: =ROUND(D9*F9*H9,2) -> 0 | L9: Pas de modification
E10: personne | G10: mois | I10: 0 | L10: Pas de modification
E11: personne | G11: mois | I11: 0 | L11: Pas de modification
E12: personne | G12: Mois | I12: 0 | L12: Pas de modification
E13: personne | G13: mois | I13: 0 | L13: Pas de modification
E14: personne | G14: mois | I14: 0 | L14: Pas de modification
E15: personne | G15: mois | I15: 0 | L15: Pas de modification
E16: personne | G16: mois | I16: 0 | L16: Pas de modification
E17: personne | G17: mois | I17: 0 | L17: Pas de modification
E18: personne | G18: mois | I18: 0 | L18: Pas de modification
E19: personne | G19: mois | I19: 0 | L19: Pas de modification
E20: personne | G20: mois | I20: 0 | L20: Pas de modification
E21: personne | G21: mois | I21: 0 | L21: Pas de modification
E22: personne | G22: mois | I22: 0 | L22: Pas de modification
E23: personne | G23: mois | I23: 0 | L23: Pas de modification
E24: personne | G24: mois | I24: 0 | L24: Pas de modification
E25: personne | G25: mois | I25: 0 | L25: Pas de modification
E26: personne | G26: mois | I26: 0 | L26: Pas de modification
E27: personne | G27: mois | I27: 0 | L27: Pas de modification
E28: personne | G28: Mois | I28: 0 | L28: Pas de modification
E29: personne | G29: mois | I29: 0 | L29: Pas de modification
E30: personne | G30: mois | I30: 0 | L30: Pas de modification
E31: personne | G31: mois | I31: 0 | L31: Pas de modification
E32: personne | G32: mois | I32: 0 | L32: Pas de modification
E33: personne | G33: mois | I33: 0 | L33: Pas de modification
E34: personne | G34: mois | I34: 0 | L34: Pas de modification
E35: personne | G35: mois | I35: =ROUND(D35*F35*H35,2) -> 0 | L35: Pas de modification
E36: personne | G36: mois | I36: 0 | L36: Pas de modification
E37: personne | G37: mois | I37: 0 | L37: Pas de modification
E38: personne | G38: mois | I38: 0 | L38: Pas de modification
E39: personne | G39: mois | I39: 0 | L39: Pas de modification
E40: personne | G40: mois | I40: 0 | L40: Pas de modification
E41: personne | G41: mois | I41: 0 | L41: Pas de modification
E42: personne | G42: mois | I42: 0 | L42: Pas de modification
A43: 2 | B43: Achat de prestations des services externes | D43: =IF('Données de base'!C20="Oui",CONCATENATE("Aide pour remplir: ",Exemple!P11),"") -> Aide pour remplir: Indiquer le contenu de la prestation ; ne pas donner les détails du contrat (heures de travail, etc) ; ne mentionner que le nombre de contrats et la valeur prévue (les directives applicables à la passation de marchés citées dans les clauses du contrat doivent être respectées !) ; utiliser une ligne budgétaire par contrat ; tous les coûts occasionnés dans le cadre de l’exécution des prestations relevant d’un contrat de prestation de services (tels que formations, voyages, etc.) sont regroupés sur une ligne du budget. Événements : les prestations fournies par le même prestataire doivent être regroupées sur une ligne du budget. (P. ex. : si la restauration et le site de l’événement sont proposés par un même hôtel, les frais correspondants sont à inscrire sur une ligne, et si les nuitées sont réservées dans un autre hôtel, ces frais doivent figurer sur une autre ligne). Les recettes que le bénéficiaire perçoit dans le cadre de l’événement ne peuvent pas être financées à partir du contrat (p. ex., loyer au titre de la location de ses propres locaux). Seuls sont financés les coûts qui peuvent être vraiment justifiés. | I43: =SUM(I44:I72) -> 0
E44: contrat | I44: =ROUND(D44*H44,2) -> 0 | L44: Pas de modification
E45: contrat | I45: =ROUND(D45*H45,2) -> 0 | L45: Pas de modification
E46: contrat | I46: 0 | L46: Pas de modification
E47: contrat | I47: 0 | L47: Pas de modification
E48: contrat | I48: 0 | L48: Pas de modification
E49: contrat | I49: 0 | L49: Pas de modification
E50: contrat | I50: =ROUND(D50*H50,2) -> 0 | L50: Pas de modification
E51: contrat | I51: 0 | L51: Pas de modification
E52: contrat | I52: 0 | L52: Pas de modification
E53: contrat | I53: 0 | L53: Pas de modification
E54: contrat | I54: 0 | L54: Pas de modification
E55: contrat | I55: 0 | L55: Pas de modification
E56: contrat | I56: 0 | L56: Pas de modification
E57: contrat | I57: 0 | L57: Pas de modification
E58: contrat | I58: 0 | L58: Pas de modification
E59: contrat | I59: 0 | L59: Pas de modification
E60: contrat | I60: 0 | L60: Pas de modification
E61: contrat | I61: 0 | L61: Pas de modification
E62: contrat | I62: 0 | L62: Pas de modification
E63: contrat | I63: 0 | L63: Pas de modification
E64: contrat | I64: 0 | L64: Pas de modification
E65: contrat | I65: 0 | L65: Pas de modification
E66: contrat | I66: 0 | L66: Pas de modification
E67: contrat | I67: 0 | L67: Pas de modification
E68: contrat | I68: 0 | L68: Pas de modification
E69: contrat | I69: 0 | L69: Pas de modification
E70: contrat | I70: 0 | L70: Pas de modification
E71: contrat | I71: 0 | L71: Pas de modification
E72: contrat | I72: 0 | L72: Pas de modification
A73: 3 | B73: Frais de transport / de voyage | D73: =IF('Données de base'!C20="Oui",CONCATENATE("Aide pour remplir: ",Exemple!P22),"") -> Aide pour remplir: Les frais de voyage incluent généralement les frais de transport de tout type, les côuts réel des nuitées, les indemnités journalières de subsistance, les frais de visa. Les autres coûts doivent être indiqués à part. Le décompte de ces frais est effectué sur la base de factures et/ou des directives du bénéficiaire relatives au remboursement des frais de mission et de déplacement et/ou de prescriptions légales (p. ex. loi fédérale sur les frais de voyage (Bundesreisekostengesetz). Une répartition en différents groupes de personnes n’est pas souhaitable. Veuillez ne pas mentionner de quantité pour les vols : tout écart nécessiterait l’établissement d’avenants, et le nombre de vols sera vérifié en cas d’audit. | I73: =SUM(I74:I101) -> 0
I74: =ROUND(D74*H74,2) -> 0 | L74: Pas de modification
I75: =ROUND(D75*H75,2) -> 0 | L75: Pas de modification
I76: 0 | L76: Pas de modification
I77: 0 | L77: Pas de modification
I78: 0 | L78: Pas de modification
I79: 0 | L79: Pas de modification
I80: 0 | L80: Pas de modification
I81: =ROUND(D81*H81,2) -> 0 | L81: Pas de modification
I82: =ROUND(D82*H82,2) -> 0 | L82: Pas de modification
I83: 0 | L83: Pas de modification
I84: 0 | L84: Pas de modification
I85: =ROUND(D85*H85,2) -> 0
I86: =ROUND(D86*H86,2) -> 0
I87: 0
I88: 0
I89: 0
I90: 0
I91: 0
I92: 0
I93: 0
I94: 0
I95: 0 | L95: Pas de modification
I96: 0 | L96: Pas de modification
I97: 0 | L97: Pas de modification
I98: 0 | L98: Pas de modification
I99: 0 | L99: Pas de modification
I100: 0 | L100: Pas de modification
I101: 0 | L101: Pas de modification
A102: 4 | B102: Achat de matériels et d'équipements | D102: =IF('Données de base'!C20="Oui",CONCATENATE("Aide pour remplir: ",TRIM(Exemple!P35)),"") -> Aide pour remplir: Les biens dont l’achat sera justifié par une seule et même facture doivent être portés sur une ligne du budget. Les matériels informatiques, p. ex., peuvent figurer sur une ligne ; dans ce cas, il faut préciser entre parenthèses les différents biens donc l'achat est prévu. Pour les médicaments et les pesticides et les engrais minéraux, davantage de détails sont nécessaires pour l’obtention de la validation. | I102: =SUM(I103:I129) -> 0 | K102: =IF(I180>400000,1,0)+(IF(I102>(I180/2),1,0)) -> 0
I103: =ROUND(D103*H103,2) -> 0 | L103: Pas de modification
I104: =ROUND(D104*H104,2) -> 0 | L104: Pas de modification
I105: 0 | L105: Pas de modification
I106: 0 | L106: Pas de modification
I107: =ROUND(D107*H107,2) -> 0 | L107: Pas de modification
I108: 0 | L108: Pas de modification
I109: 0 | L109: Pas de modification
I110: 0 | L110: Pas de modification
I111: 0 | L111: Pas de modification
I112: 0 | L112: Pas de modification
I113: =ROUND(D113*H113,2) -> 0
I114: 0
I115: 0
I116: 0
I117: 0
I118: 0
I119: 0
I120: 0
I121: 0
I122: 0
I123: 0
I124: 0 | L124: Pas de modification
I125: 0 | L125: Pas de modification
I126: 0 | L126: Pas de modification
I127: 0 | L127: Pas de modification
I128: 0 | L128: Pas de modification
I129: 0 | L129: Pas de modification
A130: 5 | B130: Autres frais / Consommables | D130: =IF('Données de base'!C20="Oui",CONCATENATE("Aide pour remplir: ",TRIM(Exemple!P46)),"") -> Aide pour remplir: Veuillez noter que les coûts indirects relèvent de la catégorie des frais administratifs généraux. Seuls des coûts directs peuvent être portés sur les lignes du budget. Si des frais de location sont indiqués, seuls les coûts directs, autrement dit les loyers nets, peuvent être calculés. Les frais annexes (charges) sont à prendre en compte comme coûts indirects et à intégrer aux frais administratifs généraux. Contrairement aux biens matériels, que l’on utilise sur de longues périodes, les consommables sont des biens qui s’épuisent au fur et à mesure de l’usage, comme p. ex. le papier ou les recharges d’encre pour imprimante. | I130: =SUM(I131:I151) -> 0
I131: =ROUND(D131*H131,2) -> 0 | L131: Pas de modification
I132: =ROUND(D132*H132,2) -> 0 | L132: Pas de modification
I133: 0 | L133: Pas de modification
I134: 0 | L134: Pas de modification
I135: =ROUND(D135*H135,2) -> 0 | L135: Pas de modification
I136: 0 | L136: Pas de modification
I137: 0 | L137: Pas de modification
I138: 0 | L138: Pas de modification
I139: 0 | L139: Pas de modification
I140: 0 | L140: Pas de modification
I141: 0 | L141: Pas de modification
I142: =ROUND(D142*H142,2) -> 0
I143: 0
I144: 0
I145: 0
I146: 0
I147: 0 | L147: Pas de modification
I148: 0 | L148: Pas de modification
I149: 0 | L149: Pas de modification
I150: 0 | L150: Pas de modification
I151: 0 | L151: Pas de modification
A152: 6 | B152: Fonds destinés au soutien direct de tiers destinataires (Remarque : cette ligne budgétaire concerne de préférence les contributions en nature à des tiers destinataires. Dans le cas de soutiens financières, il est nécessaire d'indiquer clairement comment les paiements et la réception des paiements seront prouvés. La procédure de sélection des tiers destinataires doit être expliquée en détail dans la description du projet.) | D152: =IF('Données de base'!C20="Oui",CONCATENATE("Aide pour remplir: ",TRIM(Exemple!P57)),"") -> Aide pour remplir: Veuillez observer la remarque figurant dans la ligne du budget. Il faut s’entendre sur les justificatifs dans le budget et présenter les critères de sélection dans la description du projet. Important : il ne s’agit en l’occurrence que de destinataires à qui profite le projet du bénéficiaire dans le cadre, p. ex., d’une promotion de start-up, d’une promotion d’initiatives, de mesures « espèces contre travail », de concours de promotion, de bourses et autres. Il est nécessaire de s’entendre sur les justificatifs. Concernant les détails, il faut prendre conseil auprès de l'unité en charge de la gestion des contrats. | I152: =SUM(I153:I162) -> 0
B153: XXX (Cette ligne budgétaire est décomptée contre : ….) | I153: =ROUND(D153*F153*H153,2) -> 0 | L153: Pas de modification
B154: XXX (Cette ligne budgétaire est décomptée contre : ….) | I154: =ROUND(D154*F154*H154,2) -> 0 | L154: Pas de modification
B155: XXX (Cette ligne budgétaire est décomptée contre : ….) | I155: 0 | L155: Pas de modification
B156: XXX (Cette ligne budgétaire est décomptée contre : ….) | I156: 0 | L156: Pas de modification
B157: XXX (Cette ligne budgétaire est décomptée contre : ….) | I157: 0 | L157: Pas de modification
B158: XXX (Cette ligne budgétaire est décomptée contre : ….) | I158: 0 | L158: Pas de modification
B159: XXX (Cette ligne budgétaire est décomptée contre : ….) | I159: 0 | L159: Pas de modification
B160: XXX (Cette ligne budgétaire est décomptée contre : ….) | I160: 0 | L160: Pas de modification
B161: XXX (Cette ligne budgétaire est décomptée contre : ….) | I161: 0 | L161: Pas de modification
B162: XXX (Cette ligne budgétaire est décomptée contre : ….) | I162: 0 | L162: Pas de modification
A163: 7 | B163: Coûts proportionnels du projet qui sont générés localement (p. ex. IT, recherche) | D163: =IF('Données de base'!C20="Oui",CONCATENATE("Aide pour remplir: ",TRIM(Exemple!P62)),"") -> Aide pour remplir: Cette ligne budgétaire est réservée aux organisations qui disposent d’une répartition ou d’une imputation des frais généraux dans leurs systèmes de comptabilité et peuvent en apporter la preuve en conséquence. Le type de justificatif est fixé pour chaque cas particulier. Un exemple concret est un justificatif exprimé en pourcentage, sur la base des frais généraux et des relevés d’heures.. | I163: =SUM(I164:I168) -> 0
I164: =ROUND(D164*F164*H164,2) -> 0 | L164: Pas de modification
I165: =ROUND(D165*F165*H165,2) -> 0 | L165: Pas de modification
I166: 0 | L166: Pas de modification
I167: 0 | L167: Pas de modification
I168: 0 | L168: Pas de modification
B169: Sous-total - coûts directs | I169: =I163+I152+I130+I102+I73+I43+I5 -> 0
A170: 8 | B170: Frais administratifs généraux | D170: =IF('Données de base'!C20="Oui",CONCATENATE("Aide pour remplir: ",TRIM(Exemple!P66)),"") -> Aide pour remplir: Les frais administratifs généraux devraient s’élever à 0 % étant donné qu’ils sont normalement pris en charge par le bénéficiaire du financement en tant que contribution propre. Si une telle prise en charge n’est pas possible, la GIZ peut prendre en charge une petite partie des frais administratifs généraux. La nature et le montant des frais sont vérifiés le cas échéant par un·e expert·e-comptable. Si les frais généraux d'administration se rapportent à un plus petit nombre de lignes budgétaires, il est nécessaire d'en informer la gestion des contrats. | I170: =I171 -> 0
B171: Frais administratifs généraux (pour les lignes budgétaires 1-X) | D171: ='Données de base'!E7 -> 0% | H171: =I169 -> 0.00 € | I171: =ROUND(D171*H171,2) -> 0 | L171: Pas de modification
B172: Sous-total - Financement de la GIZ (sur présentation de justificatifs - jusqu’à concurrence de - )* (coûts directs + frais administratifs généraux) | I172: =I169+I170 -> 0
A173: 9 | B173: Transfert de fonds à des bénéficiaires tiers - un budget détaillé doit être soumis - | D173: =IF('Données de base'!C20="Oui",CONCATENATE("Aide pour remplir: ",TRIM(Exemple!P69)),"") -> Aide pour remplir: Il s’agit d'un transfert des fonds à un tiers bénéficiare (co-bénéficiaires). Ce sont des partenaires qui mettent en œuvre une partie du projet en toute autonomie. Il faut soumettre un budget séparé, et une évaluation des capacités commerciales et juridiques (portant seulement sur les critères personnalité juridique et statut d’utilité publique) doit être réalisée par le projet de la GIZ. | I173: =SUM(I174:I179) -> 0
B174: XYZ (nom du bénéficiaire final) | D174: 1 | E174: unité | F174: 1 | G174: transfert | I174: =D174*F174*H174 -> 0 | L174: Pas de modification
B175: XYZ (nom du bénéficiaire final) | D175: 1 | E175: unité | F175: 1 | G175: transfert | I175: 0 | L175: Pas de modification
B176: XYZ (nom du bénéficiaire final) | D176: 1 | E176: unité | F176: 1 | G176: transfert | I176: 0 | L176: Pas de modification
B177: XYZ (nom du bénéficiaire final) | D177: 1 | E177: unité | F177: 1 | G177: transfert | I177: 0 | L177: Pas de modification
B178: XYZ (nom du bénéficiaire final) | D178: 1 | E178: unité | F178: 1 | G178: transfert | I178: 0 | L178: Pas de modification
B179: XYZ (nom du bénéficiaire final) | D179: 1 | E179: unité | F179: 1 | G179: transfert | I179: 0 | K179: Parts en pourcen-tage | L179: Pas de modification
B180: Contribution financière de la GIZ (sur présentation de justificatifs - jusqu’à concurrence de) | I180: =I172+I173 -> 0 | K180: =IFERROR(I180/$I$190,"") -> 
A181: 10 | B181: Contribution propre / Financement par les tiers | D181: =IF('Données de base'!C20="Oui",CONCATENATE("Aide pour remplir: ",TRIM(Exemple!P74)),"") -> Aide pour remplir: N’indiquez ici que la valeur globale de la contribution propre / du financement par des tiers. Une description succincte des cofinancements doit être intégrée à la description du projet. | J181: =SUM(J182:J189) -> 0
B182: =_xlfn.IFS('Données de base'!C8="Non","Pas de contribution propre", 'Données de base'!C8="Oui",'Données de base'!C3, 'Données de base'!C8="Sélectionner", "Veuillez renseigner toutes les données de base",TRUE,"") -> Veuillez renseigner toutes les données de base | D182: 1 | E182: unité | F182: 1 | G182: contribution | H182: =IF('Données de base'!C8="Oui",'Données de base'!E8,"") ->  | J182: =H182 ->  | K182: =IFERROR(J182/$I$190,"") ->  | L182: Pas de modification
B183: =_xlfn.IFS('Données de base'!C9=0,"Pas de financement par les tiers",'Données de base'!C9= "Sélectionner","Veuillez renseigner toutes les données de base", 'Données de base'!C9>0,'Données de base'!E9,TRUE,"") -> Veuillez renseigner toutes les données de base | D183: 1 | E183: unité | F183: 1 | G183: contribution | H183: =_xlfn.IFS('Données de base'!$C$9="Sélectionner", "",'Données de base'!$C$9>0,'Données de base'!G9, TRUE,"") ->  | K183: =IFERROR(J183/$I$190,"") ->  | L183: Pas de modification
B184: =_xlfn.IFS('Données de base'!C9=0,"Pas de financement par les tiers",'Données de base'!C9= "Sélectionner","Veuillez renseigner toutes les données de base", 'Données de base'!C9>1,'Données de base'!E10,TRUE,"") -> Veuillez renseigner toutes les données de base | D184: 1 | E184: unité | F184: 1 | G184: contribution | H184: =_xlfn.IFS('Données de base'!$C$9="Sélectionner", "",'Données de base'!$C$9>1,'Données de base'!G10, TRUE,"") ->  | L184: Pas de modification
B185: =_xlfn.IFS('Données de base'!C9=0,"Pas de financement par les tiers",'Données de base'!C9= "Sélectionner","Veuillez renseigner toutes les données de base", 'Données de base'!C9>2,'Données de base'!E11,TRUE,"") -> Veuillez renseigner toutes les données de base | D185: 1 | E185: unité | F185: 1 | G185: contribution | H185: =_xlfn.IFS('Données de base'!$C$9="Sélectionner", "",'Données de base'!$C$9>2,'Données de base'!G11, TRUE,"") ->  | L185: Pas de modification
B186: =_xlfn.IFS('Données de base'!C9=0,"Pas de financement par les tiers",'Données de base'!C9= "Sélectionner","Veuillez renseigner toutes les données de base", 'Données de base'!C9>3,'Données de base'!E12,TRUE,"") -> Veuillez renseigner toutes les données de base | D186: 1 | E186: unité | F186: 1 | G186: contribution | H186: =_xlfn.IFS('Données de base'!$C$9="Sélectionner", "",'Données de base'!$C$9>3,'Données de base'!G12, TRUE,"") ->  | L186: Pas de modification
B187: =_xlfn.IFS('Données de base'!C9=0,"Pas de financement par les tiers",'Données de base'!C9= "Sélectionner","Veuillez renseigner toutes les données de base", 'Données de base'!C9>4,'Données de base'!E13,TRUE,"") -> Veuillez renseigner toutes les données de base | D187: 1 | E187: unité | F187: 1 | G187: contribution | H187: =_xlfn.IFS('Données de base'!$C$9="Sélectionner", "",'Données de base'!$C$9>4,'Données de base'!G13, TRUE,"") ->  | L187: Pas de modification
B188: =_xlfn.IFS('Données de base'!C9=0,"Pas de financement par les tiers",'Données de base'!C9= "Sélectionner","Veuillez renseigner toutes les données de base", 'Données de base'!C9>5,'Données de base'!E14,TRUE,"") -> Veuillez renseigner toutes les données de base | D188: 1 | E188: unité | F188: 1 | G188: contribution | H188: =_xlfn.IFS('Données de base'!$C$9="Sélectionner", "",'Données de base'!$C$9>5,'Données de base'!G14, TRUE,"") ->  | L188: Pas de modification
B189: =_xlfn.IFS('Données de base'!C9=0,"Pas de financement par les tiers",'Données de base'!C9= "Sélectionner","Veuillez renseigner toutes les données de base", 'Données de base'!C9>6,'Données de base'!E15,TRUE,"") -> Veuillez renseigner toutes les données de base | D189: 1 | E189: unité | F189: 1 | G189: contribution | H189: =_xlfn.IFS('Données de base'!$C$9="Sélectionner", "",'Données de base'!$C$9>6,'Données de base'!G15, TRUE,"") ->  | J189: =H189 ->  | K189: =IFERROR(J189/$I$190,"") ->  | L189: Pas de modification
B190: Le budget total du projet à financer : | I190: =I180+J181 -> 0 | K190: =SUM(K180:K189) -> 0.00%
B192: * Toutes les lignes budgétaires (à l’exception des frais administratifs généraux) doivent faire l’objet d’un décompte établi sur la base de justificatifs.
B194: À noter : dans les cas où des marchés passés pour des services externes et/ou des biens matériels et/ou des fournitures doivent être financés par les fonds de la GIZ, les directives applicables à la passation de marchés spécifiées dans les clauses du contrat doivent être respectées !
B196: Les recettes et les bénéfices du bénéficiaire ne sont pas financés. Les facturations internes entre les unités organisationnelles du bénéficiaire ne sont pas financées.
B198: En cas d’avenants : veuillez procéder aux ajustements budgétaires sur la base du dernier budget convenu au contrat et noter les modifications en couleur. La GIZ ne peut pas prendre en charge les coûts dûs aux fluctuations monétaires.

Sheet Transfert du financement
B1: Budget / plan de financement - Annexe 1 | D1: Nom du bénéficiaires tiers: | J1: ='Données de base'!C22 -> 00:00:00 | N1: Keine Änderung
N2: Änderung
B3: Description | C3: Code | D3: Quan-tité / Nombre | E3: Unité (p. ex. personne, véhicule, salle, etc.) | F3: Quan-tité / Nombre | G3: Unité (p. ex. mois, jour, forma-tion, etc. | H3: Montant unitaire éligible en EUR (max.) (prix par unité) | I3: Total Contribution financière de la GIZ en EUR (max.) | J3: Contribution propre / Financement de tiers en EUR (max.) | L3: =IF($L$4="VE",CONCATENATE("En cas d'avenants",CHAR(10),"cette ligne budgétaire a-t-elle été modifiée ?"),"") -> 
B4: =IF('Données de base'!C20="Oui",CONCATENATE("Remarques: Les cellules sur fond bleu sont remplies par le bénéficiaire ","")) -> Remarques: Les cellules sur fond bleu sont remplies par le bénéficiaire | I4: =IF('Données de base'!C20="Oui","Remarques:Les cellules sont calculées automatiquement.","") -> Remarques:Les cellules sont calculées automatiquement. | L4: =IF('Données de base'!C5="Adaptation du contrat","VE","NOVE") -> NOVE
A5: 1 | B5: Personnel propre (désignation de la fonction) (Note 1 : uniquement le personnel de votre organisation ; la preuve des coûts de cette ligne budgétaire doit être fournie sous forme de fiches de salaire ou, en cas de financement proportionnel, sous forme de fiches de salaire accompagnées des relevés d'heures correspondants ; Remarque 2 : seuls les frais de personnel le (coût de revient - bruts de l'employeur) peuvent être imputés. Les suppléments tels que les charges générales du personnel, calculés au prorata du personnel, ne sont pas éligibles). | D5: =IF('Données de base'!C20="Oui",CONCATENATE("Aide pour remplir: ",Exemple!P5),"") -> Aide pour remplir: La colonne « Montant unitaire éligible (max.) » doit toujours indiquer le salaire brut mensuel du employeur. Pour les emplois à temps partiel, indiquer le pourcentage à la colonne D. Veuillez indiquer quelles sont les coûts de personnel accessoires qui s’appliquent en vertu de la législation dans votre pays. En principe, les cotisations sociales et les paiements convenus dans le contrat de travail ou la convention collective peuvent être financés (les gratifications ou les primes d’intéressement au bénéfice sont en revanche exclues). Les coûts accessoires d’une autre nature doivent être discutés et vérifiés avant l’établissement du contrat et faire l’objet d’un commentaire dans la ligne budgétaire. Les contrats portant sur des petits boulots (« mini-jobs ») ou des jobs d’étudiant sont à affecter au poste Coûts de personnel, même s’il n’y a pas de cotisations sociales à payer. Si plusieurs personnes doivent être financées au prorata (p. ex. 3 personnes à raison de 75 %), veuillez augmenter le nombre de mois en conséquence et inscrire le nombre de personnes dans la description de la ligne budgétaire. | I5: =SUM(I6:I31) -> 0 | J5: Une prise en charge partielle des lignes budgétaires n'est pas possible pour la GIZ, à l’exception des frais de « personnel propre» qui peuvent être exprimés en pourcentage ainsi que de la catégorie « Frais de bureau au prorata » . Les autres coûts qui surviennent dans le cadre de la mise en œuvre du projet et qui ne doivent pas être pris en charge par la GIZ sont calculés séparément. Soit en tant que contribution propre, soit, si cela est pertinent, en tant que contribution contribution d'un tiers. | K5: =IF(SUM(I5,#REF!,I32)>0.4*I115,1,0) ->  | L5: =IF(L4="VE","À NOTER . La GIZ ne peut pas prendre en charge les coûts dus aux fluctuations monétaires.'Transfert du financement'!K9","") -> 
E6: personne | G6: mois | I6: =ROUND(D6*F6*H6,2) -> 0 | L6: Pas de modification
E7: personne | G7: mois | I7: =ROUND(D7*F7*H7,2) -> 0 | L7: Pas de modification
E8: personne | G8: mois | I8: 0 | L8: Pas de modification
E9: personne | G9: mois | I9: 0 | L9: Pas de modification
E10: personne | G10: mois | I10: =ROUND(D10*F10*H10,2) -> 0 | L10: Pas de modification
E11: personne | G11: mois | I11: 0 | L11: Pas de modification
E12: personne | G12: mois | I12: 0 | L12: Pas de modification
E13: personne | G13: mois | I13: 0 | L13: Pas de modification
E14: personne | G14: mois | I14: 0 | L14: Pas de modification
E15: personne | G15: mois | I15: 0 | L15: Pas de modification
E16: personne | G16: mois | I16: 0 | L16: Pas de modification
E17: personne | G17: mois | I17: 0 | L17: Pas de modification
E18: personne | G18: mois | I18: 0 | L18: Pas de modification
E19: personne | G19: mois | I19: 0 | L19: Pas de modification
E20: personne | G20: mois | I20: 0 | L20: Pas de modification
E21: personne | G21: mois | I21: 0 | L21: Pas de modification
E22: personne | G22: mois | I22: 0 | L22: Pas de modification
E23: personne | G23: mois | I23: 0 | L23: Pas de modification
E24: personne | G24: mois | I24: 0 | L24: Pas de modification
E25: personne | G25: mois | I25: 0 | L25: Pas de modification
E26: personne | G26: mois | I26: 0 | L26: Pas de modification
E27: personne | G27: mois | I27: 0 | L27: Pas de modification
E28: personne | G28: mois | I28: 0 | L28: Pas de modification
E29: personne | G29: mois | I29: 0 | L29: Pas de modification
E30: personne | G30: mois | I30: 0 | L30: Pas de modification
E31: personne | G31: mois | I31: 0 | L31: Pas de modification
A32: 2 | B32: Achat de prestations des services externes | D32: =IF('Données de base'!C20="Oui",CONCATENATE("Aide pour remplir: ",Exemple!P11),"") -> Aide pour remplir: Indiquer le contenu de la prestation ; ne pas donner les détails du contrat (heures de travail, etc) ; ne mentionner que le nombre de contrats et la valeur prévue (les directives applicables à la passation de marchés citées dans les clauses du contrat doivent être respectées !) ; utiliser une ligne budgétaire par contrat ; tous les coûts occasionnés dans le cadre de l’exécution des prestations relevant d’un contrat de prestation de services (tels que formations, voyages, etc.) sont regroupés sur une ligne du budget. Événements : les prestations fournies par le même prestataire doivent être regroupées sur une ligne du budget. (P. ex. : si la restauration et le site de l’événement sont proposés par un même hôtel, les frais correspondants sont à inscrire sur une ligne, et si les nuitées sont réservées dans un autre hôtel, ces frais doivent figurer sur une autre ligne). Les recettes que le bénéficiaire perçoit dans le cadre de l’événement ne peuvent pas être financées à partir du contrat (p. ex., loyer au titre de la location de ses propres locaux). Seuls sont financés les coûts qui peuvent être vraiment justifiés. | I32: =SUM(I33:I49) -> 0
E33: contrat | I33: =ROUND(D33*H33,2) -> 0 | L33: Pas de modification
E34: contrat | I34: =ROUND(D34*H34,2) -> 0 | L34: Pas de modification
E35: contrat | I35: 0 | L35: Pas de modification
E36: contrat | I36: 0 | L36: Pas de modification
E37: contrat | I37: =ROUND(D37*H37,2) -> 0 | L37: Pas de modification
E38: contrat | I38: 0 | L38: Pas de modification
E39: contrat | I39: 0 | L39: Pas de modification
E40: contrat | I40: 0 | L40: Pas de modification
E41: contrat | I41: 0 | L41: Pas de modification
E42: contrat | I42: 0 | L42: Pas de modification
E43: contrat | I43: 0 | L43: Pas de modification
E44: contrat | I44: 0 | L44: Pas de modification
E45: contrat | I45: 0 | L45: Pas de modification
E46: contrat | I46: 0 | L46: Pas de modification
E47: contrat | I47: 0 | L47: Pas de modification
E48: contrat | I48: =ROUND(D48*H48,2) -> 0 | L48: Pas de modification
E49: contrat | I49: 0 | L49: Pas de modification
A50: 3 | B50: Frais de transport / de voyage | D50: =IF('Données de base'!C20="Oui",CONCATENATE("Aide pour remplir: ",Exemple!P22),"") -> Aide pour remplir: Les frais de voyage incluent généralement les frais de transport de tout type, les côuts réel des nuitées, les indemnités journalières de subsistance, les frais de visa. Les autres coûts doivent être indiqués à part. Le décompte de ces frais est effectué sur la base de factures et/ou des directives du bénéficiaire relatives au remboursement des frais de mission et de déplacement et/ou de prescriptions légales (p. ex. loi fédérale sur les frais de voyage (Bundesreisekostengesetz). Une répartition en différents groupes de personnes n’est pas souhaitable. Veuillez ne pas mentionner de quantité pour les vols : tout écart nécessiterait l’établissement d’avenants, et le nombre de vols sera vérifié en cas d’audit. | I50: =SUM(I51:I66) -> 0
I51: =ROUND(D51*H51,2) -> 0 | L51: Pas de modification
I52: =ROUND(D52*H52,2) -> 0 | L52: Pas de modification
I53: 0 | L53: Pas de modification
I54: 0 | L54: Pas de modification
I55: 0 | L55: Pas de modification
I56: 0 | L56: Pas de modification
I57: 0 | L57: Pas de modification
I58: =ROUND(D58*H58,2) -> 0 | L58: Pas de modification
I59: 0 | L59: Pas de modification
I60: 0 | L60: Pas de modification
I61: =ROUND(D61*H61,2) -> 0 | L61: Pas de modification
I62: 0 | L62: Pas de modification
I63: 0 | L63: Pas de modification
I64: 0 | L64: Pas de modification
I65: 0 | L65: Pas de modification
I66: 0 | L66: Pas de modification
A67: 4 | B67: Achat de matériels et équipements | D67: =IF('Données de base'!C20="Oui",CONCATENATE("Aide pour remplir: ",TRIM(Exemple!P35)),"") -> Aide pour remplir: Les biens dont l’achat sera justifié par une seule et même facture doivent être portés sur une ligne du budget. Les matériels informatiques, p. ex., peuvent figurer sur une ligne ; dans ce cas, il faut préciser entre parenthèses les différents biens donc l'achat est prévu. Pour les médicaments et les pesticides et les engrais minéraux, davantage de détails sont nécessaires pour l’obtention de la validation. | I67: =SUM(I68:I83) -> 0
I68: =ROUND(D68*H68,2) -> 0 | L68: Pas de modification
I69: =ROUND(D69*H69,2) -> 0 | L69: Pas de modification
I70: 0 | L70: Pas de modification
I71: 0 | L71: Pas de modification
I72: =ROUND(D72*H72,2) -> 0 | L72: Pas de modification
I73: 0 | L73: Pas de modification
I74: 0 | L74: Pas de modification
I75: 0 | L75: Pas de modification
I76: 0 | L76: Pas de modification
I77: 0 | L77: Pas de modification
I78: 0 | L78: Pas de modification
I79: 0 | L79: Pas de modification
I80: 0 | L80: Pas de modification
I81: 0 | L81: Pas de modification
I82: 0 | L82: Pas de modification
I83: 0 | L83: Pas de modification
A84: 5 | B84: Autres frais / Consommables | D84: =IF('Données de base'!C20="Oui",CONCATENATE("Aide pour remplir: ",TRIM(Exemple!P46)),"") -> Aide pour remplir: Veuillez noter que les coûts indirects relèvent de la catégorie des frais administratifs généraux. Seuls des coûts directs peuvent être portés sur les lignes du budget. Si des frais de location sont indiqués, seuls les coûts directs, autrement dit les loyers nets, peuvent être calculés. Les frais annexes (charges) sont à prendre en compte comme coûts indirects et à intégrer aux frais administratifs généraux. Contrairement aux biens matériels, que l’on utilise sur de longues périodes, les consommables sont des biens qui s’épuisent au fur et à mesure de l’usage, comme p. ex. le papier ou les recharges d’encre pour imprimante. | I84: =SUM(I85:I100) -> 0
I85: =ROUND(D85*H85,2) -> 0 | L85: Pas de modification
I86: =ROUND(D86*H86,2) -> 0 | L86: Pas de modification
I87: 0 | L87: Pas de modification
I88: 0 | L88: Pas de modification
I89: 0 | L89: Pas de modification
I90: 0 | L90: Pas de modification
I91: 0 | L91: Pas de modification
I92: 0 | L92: Pas de modification
I93: 0 | L93: Pas de modification
I94: 0 | L94: Pas de modification
I95: 0 | L95: Pas de modification
I96: 0 | L96: Pas de modification
I97: 0 | L97: Pas de modification
I98: 0 | L98: Pas de modification
I99: 0 | L99: Pas de modification
I100: 0 | L100: Pas de modification
A101: 6 | B101: Fonds destinés au soutien direct de tiers destinataires (Remarque : cette ligne budgétaire concerne de préférence les contributions en nature à des tiers destinataires. Dans le cas de soutiens financières, il est nécessaire d'indiquer clairement comment les paiements et la réception des paiements seront prouvés. La procédure de sélection des tiers destinataires doit être expliquée en détail dans la description du projet.) | D101: =IF('Données de base'!C20="Oui",CONCATENATE("Aide pour remplir: ",TRIM(Exemple!P57)),"") -> Aide pour remplir: Veuillez observer la remarque figurant dans la ligne du budget. Il faut s’entendre sur les justificatifs dans le budget et présenter les critères de sélection dans la description du projet. Important : il ne s’agit en l’occurrence que de destinataires à qui profite le projet du bénéficiaire dans le cadre, p. ex., d’une promotion de start-up, d’une promotion d’initiatives, de mesures « espèces contre travail », de concours de promotion, de bourses et autres. Il est nécessaire de s’entendre sur les justificatifs. Concernant les détails, il faut prendre conseil auprès de l'unité en charge de la gestion des contrats. | I101: =SUM(I102:I107) -> 0 | L101: =IF(L4="VE","ACHTUNG: Kosten, die aufgrund von Währungsschwankungen entstehen, können nicht von der GIZ übernommen werden.","") -> 
B102: XXX (Cette ligne budgétaire est décomptée contre : ….) | I102: =ROUND(D102*F102*H102,2) -> 0 | L102: Pas de modification
B103: XXX (Cette ligne budgétaire est décomptée contre : ….) | I103: 0 | L103: Pas de modification
B104: XXX (Cette ligne budgétaire est décomptée contre : ….) | I104: 0 | L104: Pas de modification
B105: XXX (Cette ligne budgétaire est décomptée contre : ….) | I105: 0 | L105: Pas de modification
B106: XXX (Cette ligne budgétaire est décomptée contre : ….) | I106: 0 | L106: Pas de modification
B107: XXX (Cette ligne budgétaire est décomptée contre : ….) | I107: 0 | L107: Pas de modification
A108: 7 | B108: Coûts proportionnels du projet qui sont générés localement (p. ex. IT, recherche) | D108: =IF('Données de base'!C20="Oui",CONCATENATE("Aide pour remplir: ",TRIM(Exemple!P62)),"") -> Aide pour remplir: Cette ligne budgétaire est réservée aux organisations qui disposent d’une répartition ou d’une imputation des frais généraux dans leurs systèmes de comptabilité et peuvent en apporter la preuve en conséquence. Le type de justificatif est fixé pour chaque cas particulier. Un exemple concret est un justificatif exprimé en pourcentage, sur la base des frais généraux et des relevés d’heures.. | I108: =SUM(I109:I111) -> 0
I109: =ROUND(D109*F109*H109,2) -> 0 | L109: Pas de modification
I110: =ROUND(D110*F110*H110,2) -> 0 | L110: Pas de modification
I111: =ROUND(D111*F111*H111,2) -> 0 | L111: Pas de modification
B112: Sous-total - Coûts directs | I112: =I84+I67+I32+I5+I50+I101+I108 -> 0
A113: 8 | B113: Frais administratifs généraux | D113: =IF('Données de base'!C20="Oui",CONCATENATE("Aide pour remplir: ",TRIM(Exemple!P66)),"") -> Aide pour remplir: Les frais administratifs généraux devraient s’élever à 0 % étant donné qu’ils sont normalement pris en charge par le bénéficiaire du financement en tant que contribution propre. Si une telle prise en charge n’est pas possible, la GIZ peut prendre en charge une petite partie des frais administratifs généraux. La nature et le montant des frais sont vérifiés le cas échéant par un·e expert·e-comptable. Si les frais généraux d'administration se rapportent à un plus petit nombre de lignes budgétaires, il est nécessaire d'en informer la gestion des contrats. | I113: =I114 -> 0
B114: Frais administratifs généraux (pour les lignes budgétaires 1-X) | D114: 0.00% | H114: =I112 -> 0 | I114: =D114*H114 -> 0 | L114: Pas de modification
B115: Sous-total - contribution financière de la GIZ (sur présentation de justificatifs - jusqu’à concurrence de - )* (coûts directs + frais administratifs généraux) | I115: =I112+I113 -> 0
B116: Contribution financière de la GIZ (sur présentation de justificatifs - jusqu’à concurrence de) | I116: =I115 -> 0
B118: * Toutes les lignes budgétaires (à l’exception des frais administratifs généraux) doivent faire l’objet d’un décompte établi sur la base de justificatifs.
B120: À noter : dans les cas où des marchés passés pour des services externes et/ou des biens matériels et/ou des fournitures doivent être financés par les fonds de la GIZ, les directives applicables à la passation de marchés spécifiées dans les clauses du contrat doivent être respectées !
B122: Les recettes et les bénéfices du bénéficiaires tiers ne sont pas financés. Les facturations internes entre les unités organisationnelles du bénéficiaires tiers ne sont pas financées.
B124: En cas d’avenants : veuillez procéder aux ajustements budgétaires sur la base du dernier budget convenu au contrat et noter les modifications en couleur. La GIZ ne peut pas prendre en charge les coûts dûs aux fluctuations monétaires (l'inflation)

Sheet Exemple
A1: Budget / plan de financement - Annexe 1 | J1: ='Données de base'!C33 -> 00:00:00 | P1: Remarques concernant le traitement : Cet exemple a seulement valeur d’orientation pour l’onglet « Budget Financements ».
B3: Description | C3: Code | D3: Quantité / Nombre | E3: Unité (p. ex. personne, véhicule, salle, etc.) | F3: Quantité / Nombre | G3: Unité (p. ex. mois, jour, formation, etc. | H3: Montant unitaire éligible en EUR (max.) (prix par unité) | I3: Total Contribution financière de la GIZ en EUR (max.) | J3: Contribution propre / Financement de tiers en EUR (max.) | L3: =IF(#REF!="VE",CONCATENATE("Bei Vertragsanpassungen:",CHAR(10),"hat sich diese Budgetzeile geändert?"),"") ->  | P3: Remarques générales : Ce format de budget sert de base de décompte. Pour votre usage interne, n’hésitez pas à créer d’autres fichiers contenant des informations plus détaillées. Tous les postes inscrits au budget doivent également figurer dans la description du projet afin que le lien avec le projet soit visible. Le tableau est pourvu de formules qui doivent être conservées. Veuillez vous tenir au format à deux décimales. Il est recommandé d’arrondir les unités dans la mesure du possible. Les coûts sont convenus avec une valeur « max. ».
B4: =IF('Données de base'!C20="Ja",CONCATENATE("Hinweis: Blaue Felder durch ",IF('Données de base'!C20=""," Zuschussempfänger",'Données de base'!C20)," auszufüllen"),"") ->  | I4: =IF('Données de base'!C20="Ja","Hinweis: Wird automatisch ausgefüllt","") ->  | L4: =IF('Données de base'!C22="Vertragsanpassung","VE","NOVE") -> NOVE | P4: Remarques concernant l’établissement du budget
A5: 1 | B5: Personnel propre (désignation de la fonction) (Note 1 : uniquement le personnel de votre organisation ; la preuve des coûts de cette ligne budgétaire doit être fournie sous forme de fiches de salaire ou, en cas de financement proportionnel, sous forme de fiches de salaire accompagnées des relevés d'heures correspondants ; Remarque 2 : seuls les frais de personnel le (coût de revient - bruts de l'employeur) peuvent être imputés. Les suppléments tels que les charges générales du personnel, calculés au prorata du personnel, ne sont pas éligibles). | I5: =SUM(I6:I10) -> 62,200.00 € | J5: Une prise en charge partielle des lignes budgétaires n'est pas possible pour la GIZ, à l’exception des frais de « personnel propre» qui peuvent être exprimés en pourcentage ainsi que de la catégorie « Frais de bureau au prorata » . Les autres coûts qui surviennent dans le cadre de la mise en œuvre du projet et qui ne doivent pas être pris en charge par la GIZ sont calculés séparément. Soit en tant que contribution propre, soit, si cela est pertinent, en tant que contribution contribution d'un tiers. | L5: =IF(L4="VE","ACHTUNG: Kosten, die aufgrund von Währungsschwankungen entstehen, können nicht von der GIZ übernommen werden.","") ->  | P5: La colonne « Montant unitaire éligible (max.) » doit toujours indiquer le salaire brut mensuel du employeur. Pour les emplois à temps partiel, indiquer le pourcentage à la colonne D. Veuillez indiquer quelles sont les coûts de personnel accessoires qui s’appliquent en vertu de la législation dans votre pays. En principe, les cotisations sociales et les paiements convenus dans le contrat de travail ou la convention collective peuvent être financés (les gratifications ou les primes d’intéressement au bénéfice sont en revanche exclues). Les coûts accessoires d’une autre nature doivent être discutés et vérifiés avant l’établissement du contrat et faire l’objet d’un commentaire dans la ligne budgétaire. Les contrats portant sur des petits boulots (« mini-jobs ») ou des jobs d’étudiant sont à affecter au poste Coûts de personnel, même s’il n’y a pas de cotisations sociales à payer. Si plusieurs personnes doivent être financées au prorata (p. ex. 3 personnes à raison de 75 %), veuillez augmenter le nombre de mois en conséquence et inscrire le nombre de personnes dans la description de la ligne budgétaire.
B6: Gestionnaire de projet | D6: 100% | E6: personne | F6: 20 | G6: mois | H6: 3,000.00 | I6: =D6*F6*H6 -> 60,000.00 €
B7: Gestionnaire financier·ère | D7: 5% | E7: personne | F7: 20 | G7: mois | H7: 2,200.00 | I7: =D7*F7*H7 -> 2,200.00 €
E8: personne | G8: mois | I8: =D8*F8*H8 -> 0
E9: personne | G9: mois | I9: =D9*F9*H9 -> 0
E10: personne | G10: mois | I10: =D10*F10*H10 -> 0
A11: 2 | B11: Achat de prestations de services externes | I11: =SUM(I12:I21) -> 7,000.00 € | P11: Indiquer le contenu de la prestation ; ne pas donner les détails du contrat (heures de travail, etc) ; ne mentionner que le nombre de contrats et la valeur prévue (les directives applicables à la passation de marchés citées dans les clauses du contrat doivent être respectées !) ; utiliser une ligne budgétaire par contrat ; tous les coûts occasionnés dans le cadre de l’exécution des prestations relevant d’un contrat de prestation de services (tels que formations, voyages, etc.) sont regroupés sur une ligne du budget. Événements : les prestations fournies par le même prestataire doivent être regroupées sur une ligne du budget. (P. ex. : si la restauration et le site de l’événement sont proposés par un même hôtel, les frais correspondants sont à inscrire sur une ligne, et si les nuitées sont réservées dans un autre hôtel, ces frais doivent figurer sur une autre ligne). Les recettes que le bénéficiaire perçoit dans le cadre de l’événement ne peuvent pas être financées à partir du contrat (p. ex., loyer au titre de la location de ses propres locaux). Seuls sont financés les coûts qui peuvent être vraiment justifiés.
B12: Modération | D12: 1 | E12: contrat | H12: 5,000.00 | I12: =D12*H12 -> 5,000.00 €
B13: Frais de restauration et de location de salles | D13: 1 | E13: contrat | H13: 2,000.00 | I13: =D13*H13 -> 2,000.00 €
B14: Expert·e en héliotechnique | E14: contrat | I14: 0
B15: Expert·e en... | E15: contrat | I15: 0
B16: Personnel externe (qui n’est pas employé par le bénéficiaire en tant que personnel salarié assujetti à la sécurité sociale) | E16: contrat | I16: 0
B17: Marchés de conseil | E17: contrat | I17: 0
B18: Entreprises externes (transport en bus p. ex.) | E18: contrat | I18: 0
E19: contrat | I19: 0
E20: contrat | I20: 0
E21: contrat | I21: 0
A22: 3 | B22: Frais de transport / de voyage | I22: =SUM(I23:I32) -> 4,500.00 € | P22: Les frais de voyage incluent généralement les frais de transport de tout type, les côuts réel des nuitées, les indemnités journalières de subsistance, les frais de visa. Les autres coûts doivent être indiqués à part. Le décompte de ces frais est effectué sur la base de factures et/ou des directives du bénéficiaire relatives au remboursement des frais de mission et de déplacement et/ou de prescriptions légales (p. ex. loi fédérale sur les frais de voyage (Bundesreisekostengesetz). Une répartition en différents groupes de personnes n’est pas souhaitable. Veuillez ne pas mentionner de quantité pour les vols : tout écart nécessiterait l’établissement d’avenants, et le nombre de vols sera vérifié en cas d’audit.
B23: Vols internationaux | D23: 1 | E23: unité | H23: 4,000.00 | I23: =D23*H23 -> 4,000.00 €
B24: Vols nationaux | D24: 1 | E24: unité | H24: 500.00 | I24: =D24*H24 -> 500.00 €
B25: Frais occasionnés par les voyages internationaux (indemnités journalières/d’hébergement, moyens de transport, visas, vaccins requis) | I25: 0
B26: Frais occasionnés par les voyages nationaux (indemnités journalières/d’hébergement, moyens de transport) | I26: 0
B27: Frais de transport de marchandises | I27: 0
B28: Frais de voyage des participant·e·s aux ateliers | I28: 0
I29: 0
B30: 4. Co2 Kompensationen | I30: =D30*F30*H30 -> 0 | K30: möglicherweise erstmal raus
I31: =D31*F31*H31 -> 0
I32: =D32*F32*H32 -> 0
A35: 4 | B35: Achat de matériels et équipements | I35: =SUM(I36:I45) -> 4,000.00 € | K35: =IF(I73>400000,1,0)+(IF(I35>(I73/2),1,0)) -> 0 | P35: Les biens dont l’achat sera justifié par une seule et même facture doivent être portés sur une ligne du budget. Les matériels informatiques, p. ex., peuvent figurer sur une ligne ; dans ce cas, il faut préciser entre parenthèses les différents biens donc l'achat est prévu. Pour les médicaments et les pesticides et les engrais minéraux, davantage de détails sont nécessaires pour l’obtention de la validation.
B36: Matériel informatique (ordinateur portable, imprimante, rétroprojecteur, accessoires) | D36: 1 | E36: achat | H36: 4,000.00 | I36: =D36*H36 -> 4,000.00 €
B37: Équipement photographique (appareil photo et accessoires) | I37: =D37*H37 -> 0
B38: Machine XY (indiquer précisément de quelle machine il s’agit, mais sans mentionner le modèle ni la marque !) | I38: 0
B39: Mobilier (bureaux, chaises, armoires) | I39: 0
B40: Indiquer précisément les véhicules et leur type : p. ex. voiture électriques, SUV blindé, scooter, etc. | I40: 0
B41: Téléphones portables | I41: 0
I42: 0
I43: 0
I44: 0
I45: 0
A46: 5 | B46: Autres frais / Consommables | I46: =SUM(I47:I56) -> 100.00 € | P46: Veuillez noter que les coûts indirects relèvent de la catégorie des frais administratifs généraux. Seuls des coûts directs peuvent être portés sur les lignes du budget. Si des frais de location sont indiqués, seuls les coûts directs, autrement dit les loyers nets, peuvent être calculés. Les frais annexes (charges) sont à prendre en compte comme coûts indirects et à intégrer aux frais administratifs généraux. Contrairement aux biens matériels, que l’on utilise sur de longues périodes, les consommables sont des biens qui s’épuisent au fur et à mesure de l’usage, comme p. ex. le papier ou les recharges d’encre pour imprimante.
B47: Fournitures de bureau (papier pour imprimante, recharges d’encre, matériel d’écriture) | D47: 1 | E47: unité | H47: 100.00 | I47: =D47*H47 -> 100.00 €
B48: Logiciels informatiques, licences | I48: =D48*H48 -> 0
B49: Matériel d’emballage pour xxx | I49: 0
B50: Matériel de laboratoire | I50: 0
B51: Produits d’hygiène | I51: 0
B52: Outils | I52: 0
B53: Eau | I53: 0
B54: Dépliants / matériel publicitaire | I54: 0
B55: Frais de téléphone, cartes téléphoniques, etc. | I55: 0
B56: Location de bureaux au prorata, p. ex. 1 salle, xxx m2 | I56: 0
A57: 6 | B57: Fonds destinés au soutien direct de tiers destinataires (Remarque : cette ligne budgétaire concerne de préférence les contributions en nature à des tiers destinataires. Dans le cas de soutiens financières, il est nécessaire d'indiquer clairement comment les paiements et la réception des paiements seront prouvés. La procédure de sélection des tiers destinataires doit être expliquée en détail dans la description du projet.) | I57: =SUM(I58:I61) -> 600.00 € | P57: Veuillez observer la remarque figurant dans la ligne du budget. Il faut s’entendre sur les justificatifs dans le budget et présenter les critères de sélection dans la description du projet. Important : il ne s’agit en l’occurrence que de destinataires à qui profite le projet du bénéficiaire dans le cadre, p. ex., d’une promotion de start-up, d’une promotion d’initiatives, de mesures « espèces contre travail », de concours de promotion, de bourses et autres. Il est nécessaire de s’entendre sur les justificatifs. Concernant les détails, il faut prendre conseil auprès de l'unité en charge de la gestion des contrats.
B58: Mesure de mise en oeuvre «Cash for Work» (Décompte sur la base d'une liste de présence des participants, accusé de réception par signature ou empreinte digitale ; la procédure de sélection est décrite en détail dans la description du projet.) | D58: 10 | E58: personne | F58: 20 | G58: jours | H58: 3.00 | I58: =D58*F58*H58 -> 600.00 €
I59: =D59*F59*H59 -> 0
I60: =D60*F60*H60 -> 0
I61: =D61*F61*H61 -> 0
A62: 7 | B62: Coûts proportionnels du projet qui sont générés localement (p. ex. IT, recherche) | I62: =SUM(I63:I64) -> 0 | P62: Cette ligne budgétaire est réservée aux organisations qui disposent d’une répartition ou d’une imputation des frais généraux dans leurs systèmes de comptabilité et peuvent en apporter la preuve en conséquence. Le type de justificatif est fixé pour chaque cas particulier. Un exemple concret est un justificatif exprimé en pourcentage, sur la base des frais généraux et des relevés d’heures..
E63: % | G63: unité | I63: =D63*F63*H63 -> 0
I64: =D64*F64*H64 -> 0
B65: Sous-total - coûts directs | I65: =I46+I35+I11+I5+I22+I30+I57 -> 78,400.00 €
A66: 8 | B66: Frais administratifs généraux | I66: =I67 -> 3,920.00 € | P66: Les frais administratifs généraux devraient s’élever à 0 % étant donné qu’ils sont normalement pris en charge par le bénéficiaire du financement en tant que contribution propre. Si une telle prise en charge n’est pas possible, la GIZ peut prendre en charge une petite partie des frais administratifs généraux. La nature et le montant des frais sont vérifiés le cas échéant par un·e expert·e-comptable. Si les frais généraux d'administration se rapportent à un plus petit nombre de lignes budgétaires, il est nécessaire d'en informer la gestion des contrats.
B67: Frais administratifs généraux (pour les lignes budgétaires 1-7) | D67: 5% | H67: =I65 -> 78,400.00 | I67: =D67*H67 -> 3,920.00 €
B68: Sous-total - contribution financière de la GIZ (sur présentation de justificatifs - jusqu’à concurrence de - )* (coûts directs + frais administratifs généraux) | I68: =I65+I66 -> 82,320.00 €
A69: 9 | B69: Transfert de fonds à des bénéficiaires tiers - un budget détaillé doit être soumis - | P69: Il s’agit d'un transfert des fonds à un tiers bénéficiare (co-bénéficiaires). Ce sont des partenaires qui mettent en œuvre une partie du projet en toute autonomie. Il faut soumettre un budget séparé, et une évaluation des capacités commerciales et juridiques (portant seulement sur les critères personnalité juridique et statut d’utilité publique) doit être réalisée par le projet de la GIZ.
B70: XYZ (nom du bénéficiaire final) | D70: 1 | E70: unité | F70: 1 | G70: transfert | H70: ='Transfert du financement'!I126 -> 0.00 | I70: =D70*F70*H70 -> 0
B71: XYZ (nom du bénéficiaire final) | D71: 1 | E71: unité | F71: 1 | G71: transfert | I71: =D71*F71*H71 -> 0
B72: XYZ (nom du bénéficiaire final) | D72: 1 | E72: unité | F72: 1 | G72: transfert | I72: =D72*F72*H72 -> 0 | K72: Anteile in Prozent
B73: Contribution financière de la GIZ (sur présentation de justificatifs - jusqu’à concurrence de) | I73: =I68 -> 82,320.00 € | J73: =I73 -> 82,320.00 € | K73: =J73/$I$79 -> 84.59%
A74: =10 -> 10 | B74: Contribution propre / Financement par des tiers | J74: =SUM(J75:J77) -> 15,000.00 € | P74: N’indiquez ici que la valeur globale de la contribution propre / du financement par des tiers. Une description succincte des cofinancements doit être intégrée à la description du projet.
B75: ABC (contribution propre) | D75: 1 | E75: unité | F75: 1 | G75: contribution | H75: 5,000.00 | J75: =H75 -> 5,000.00 € | K75: =J75/$I$79 -> 5.14%
B76: DEF (financement par de tiers) | D76: 1 | E76: unité | F76: 1 | G76: contribution | H76: 10,000.00 | J76: =H76 -> 10,000.00 € | K76: =J76/$I$79 -> 10.28%
D77: 1 | E77: unité | F77: 1 | G77: contribution | H77: =_xlfn.IFS('Données de base'!$C$9="Auswählen", "",'Données de base'!$C$9>0,'Données de base'!G26, TRUE,"") -> 0.00 | J77: =H77 -> 0 | K77: =IFERROR(J77/$I$79,"") -> 0.00%
D78: 1 | E78: unité | F78: 1 | G78: contribution | H78: =_xlfn.IFS('Données de base'!$C$9="Auswählen", "",'Données de base'!$C$9>0,'Données de base'!G27, TRUE,"") -> 0.00 | J78: =H78 -> 0 | K78: =IFERROR(J78/$I$79,"") -> 0.00%
B79: Le budget total du projet à financer : | I79: =I73+J74 -> 97,320.00 € | K79: =SUM(K73:K78) -> 100.00%
B81: * Toutes les lignes budgétaires (à l’exception des frais administratifs généraux) doivent faire l’objet d’un décompte établi sur la base de justificatifs.
B83: À noter : dans les cas où des marchés passés pour des services externes et/ou des biens matériels et/ou des fournitures doivent être financés par les fonds de la GIZ, les directives applicables à la passation de marchés spécifiées dans les clauses du contrat doivent être respectées !
B86: Les recettes et les bénéfices du bénéficiaire ne sont pas financés. Les facturations internes entre les unités organisationnelles du bénéficiaire ne sont pas financées.
B87: En cas d’avenants : veuillez procéder aux ajustements budgétaires sur la base du dernier budget convenu au contrat et noter les modifications en couleur. La GIZ ne peut pas prendre en charge les coûts dûs aux fluctuations monétaires. | P87: Dans la demande de modification du contrat, il convient d’expliciter les redéploiements budgétaires. L’augmentation des coûts de personnel en particulier doit être assortie d’une justification.
